bitfinex-derivatives/quotes_ETHF0:USTF0_20250110
["timestamp","ask_amount","ask_price","bid_price","bid_amount"]
[1736487968813,0.458,3271.3,3270.9,3.2078]
[1736487968814,1.89206906,3271.2,3270.9,3.2078]
[1736487969010,0.77083,3271.1,3270.9,3.2078]
[1736487969523,0.4651,3271.1,3270.6,0.30577]
[1736487969711,1.89206906,3270.9,3270.4,3.2078]
[1736487970017,2.19780906,3270.9,3270.5,0.30577]
[1736487970212,0.30576,3270.8,3270.4,3.51358]
[1736487970412,0.4651,3271.1,3270.4,3.2078]
[1736487970616,1.89206906,3270.5,3270.4,3.2078]
[1736487971417,2.19784906,3270.5,3270.4,3.2078]
[1736487972218,2.19784906,3270.5,3269.8,1.11980283]
[1736487972219,1.89206906,3270.5,3269.9,3.2078]
[1736487972415,1.89206906,3270.1,3269.9,3.2078]
[1736487973313,2.60627245,3270.2,3269.9,3.2078]
[1736487973619,2.60627245,3270.2,3268.7,3.2078]
[1736487973620,0.3059,3269.3,3268.7,3.2078]
[1736487973815,2.30046245,3269.1,3268.7,3.2078]
[1736487974118,0.30592,3269.0,3268.7,3.2078]
[1736487974414,2.30046245,3269.1,3268.7,3.2078]
[1736487974615,0.30593,3268.9,3268.7,3.2078]
[1736487974917,3.2078,3269.5,3268.7,3.2078]
[1736487974918,2.30046245,3269.5,3268.7,3.2078]
[1736487975121,2.30046245,3269.9,3269.3,40.8]
[1736487975418,2.30046245,3270.3,3269.5,3.2078]
[1736487975809,2.30046245,3270.3,3269.9,3.2078]
[1736487976014,2.30046245,3270.3,3269.4,0.4656]
[1736487976015,3.6719,3270.2,3269.4,3.2078]
[1736487976216,2.30046245,3269.9,3269.4,3.2078]
[1736487976416,0.9124,3270.8,3269.3,40.8]
[1736487976417,3.2078,3270.6,3269.8,3.2078]
[1736487976814,0.30579,3270.4,3269.9,0.9315]
[1736487977022,2.30046245,3270.4,3269.8,3.2078]
[1736487977214,2.30046245,3270.4,3270.2,0.3058]
[1736487977420,3.2078,3270.6,3269.8,3.2078]
[1736487977727,3.51357,3270.6,3270.1,0.30581]
[1736487977922,3.2078,3270.6,3270.3,0.30579]
[1736487978221,3.90818245,3271.2,3270.7,0.30576]
[1736487978517,3.60246245,3271.2,3270.7,3.51356]
[1736487978719,3.60246245,3271.2,3270.7,3.2078]
[1736487979025,0.30574,3271.0,3270.7,3.2078]
[1736487979322,2.30046245,3271.2,3270.7,3.2078]
[1736487979722,0.30576,3270.8,3270.3,3.2078]
[1736487979922,0.30576,3270.8,3270.3,3.51359]
[1736487980119,0.30576,3270.7,3270.3,3.2078]
[1736487980320,0.30575,3270.9,3270.3,3.51359]
[1736487980515,2.30046245,3271.2,3270.7,3.2078]
[1736487980721,0.30572,3271.1,3270.7,3.2078]
[1736487981318,2.30046245,3271.2,3270.8,0.30575]
[1736487981629,0.76279,3271.5,3271.1,3.2078]
[1736487981825,0.3057,3271.3,3271.1,3.2078]
[1736487982023,0.30571,3271.2,3271.1,3.2078]
[1736487982225,0.30575,3270.9,3270.6,3.2078]
[1736487982427,0.30576,3270.7,3270.6,3.2078]
[1736487982730,2.30046245,3271.2,3270.6,3.2078]
[1736487982731,0.471,3271.1,3270.6,3.2078]
[1736487982917,2.30046245,3271.2,3270.6,3.2078]
[1736487983124,1.302,3271.4,3271.0,3.2078]
[1736487983425,2.30046245,3271.2,3270.6,3.2078]
[1736487983726,1.302,3271.1,3270.6,3.2078]
[1736487983928,2.60618245,3271.2,3270.7,0.30575]
[1736487984420,1.6077,3271.4,3271.0,3.2078]
[1736487984615,0.3057,3271.3,3271.0,3.2078]
[1736487984816,0.30572,3271.2,3271.0,3.2078]
[1736487985021,0.30571,3271.3,3271.0,3.2078]
[1736487985217,0.30572,3271.2,3271.0,3.2078]
[1736487985527,0.76278,3271.5,3271.1,0.30572]
[1736487985727,3.2078,3271.7,3271.1,0.30572]
[1736487985923,3.2078,3271.7,3271.3,0.3057]
[1736487986626,0.30568,3271.6,3271.0,3.51352]
[1736487986929,0.30568,3271.6,3271.0,3.2078]
[1736487986930,0.30572,3271.1,3271.0,3.2078]
[1736487987316,0.9329,3271.5,3270.7,0.4362]
[1736487987520,0.30574,3270.9,3270.7,0.4362]
[1736487987819,0.30574,3270.9,3270.6,3.2078]
[1736487988020,0.462,3271.2,3270.6,3.2078]
[1736487988220,0.30574,3271.0,3270.6,3.51357]
[1736487988424,0.462,3271.2,3270.6,3.2078]
[1736487988726,0.30576,3270.7,3270.6,3.2078]
[1736487990219,1.764,3271.2,3270.4,3.2078]
[1736487990220,4.06446245,3271.2,3270.4,3.2078]
[1736487990428,0.30575,3270.8,3270.4,3.51358]
[1736487990630,3.2078,3271.7,3270.4,3.2078]
[1736487990828,3.2078,3271.7,3269.8,1.7411]
[1736487990829,0.75553,3272.1,3271.3,3.2078]
[1736487991037,0.4499,3272.1,3271.8,0.30566]
[1736487991329,0.4499,3272.1,3271.7,3.2078]
[1736487991330,0.4458,3272.4,3271.7,3.2078]
[1736487991531,0.30559,3272.5,3272.2,0.30562]
[1736487991734,0.4499,3272.6,3272.3,0.3056]
[1736487991937,1.302,3272.7,3272.1,3.2078]
[1736487992432,1.302,3272.7,3272.5,0.30559]
[1736487992628,1.302,3272.7,3272.3,0.30561]
[1736487992832,1.60758,3272.7,3272.2,0.4444]
[1736487993031,1.302,3272.7,3272.1,3.2078]
[1736487993427,1.302,3272.7,3272.3,0.30561]
[1736487993833,1.302,3272.7,3272.1,3.2078]
[1736487994234,0.30558,3272.6,3272.1,3.51342]
[1736487994536,1.60757,3272.7,3272.3,0.3056]
[1736487994936,0.30557,3272.7,3272.3,0.3056]
[1736487995236,3.2078,3273.5,3272.5,3.2078]
[1736487995436,0.007,3274.7,3271.7,0.4776]
[1736487995437,0.47,3273.8,3273.3,3.2078]
[1736487995625,2.30046245,3274.4,3273.4,0.3055]
[1736487995828,2.30046245,3274.0,3273.3,3.2078]
[1736487996026,1.7823,3273.9,3273.3,3.2078]
[1736487996229,0.30554,3273.0,3272.9,3.2078]
[1736487996530,1.326,3273.0,3272.5,3.2078]
[1736487996826,0.30557,3272.7,3272.5,3.2078]
[1736487997232,0.30558,3272.6,3272.5,3.2078]
[1736487998431,1.757,3272.9,3272.5,3.2078]
[1736487998734,0.30558,3272.6,3272.5,3.2078]
[1736488000143,0.30564,3272.1,3271.7,3.2078]
[1736488000339,5.50826245,3272.8,3271.7,3.2078]
[1736488000529,0.30566,3271.8,3271.7,3.2078]
[1736488000734,2.30046245,3272.4,3271.7,3.2078]
[1736488000935,0.30563,3272.1,3271.7,3.2078]
[1736488001137,0.30564,3272.0,3271.7,3.2078]
[1736488002140,5.50826245,3272.8,3271.7,3.2078]
[1736488002340,0.431,3272.9,3272.1,3.2078]
[1736488002541,0.30559,3272.5,3272.1,3.51342]
[1736488002840,1.7823,3273.0,3272.6,0.30558]
[1736488002841,1.326,3273.0,3272.6,0.30558]
[1736488003039,2.30046245,3273.2,3272.2,0.4623]
[1736488003234,2.30046245,3273.2,3272.3,0.30561]
[1736488003435,2.30046245,3273.2,3272.2,0.4623]
[1736488003936,2.30046245,3273.2,3272.5,0.30559]
[1736488004137,0.30555,3273.0,3272.5,0.30559]
[1736488004444,0.30554,3273.1,3272.2,0.4623]
[1736488004644,0.30554,3273.1,3272.6,0.30557]
[1736488004841,0.30555,3273.0,3272.5,3.51339]
[1736488005035,0.30556,3272.9,3272.5,3.51339]
[1736488005236,2.30046245,3273.2,3272.5,3.2078]
[1736488005433,0.4607,3273.3,3272.9,3.51335]
[1736488005746,2.30046245,3273.2,3272.9,3.2078]
[1736488005934,0.30556,3272.9,3272.5,3.2078]
[1736488006135,0.30554,3273.1,3272.5,3.2078]
[1736488006331,3.2078,3273.4,3272.9,3.2078]
[1736488006535,3.62646245,3273.6,3272.9,3.51335]
[1736488006736,2.30046245,3273.6,3272.9,3.2078]
[1736488006936,3.62646245,3274.0,3273.2,3.2078]
[1736488007142,0.30546,3273.9,3273.5,0.3055]
[1736488007345,0.3055,3273.5,3273.2,3.2078]
[1736488007539,0.30551,3273.4,3273.2,3.2078]
[1736488007932,2.30046245,3273.6,3273.2,3.2078]
[1736488008146,0.30552,3273.3,3273.2,3.2078]
[1736488011040,3.2078,3273.7,3273.2,3.2078]
[1736488011548,0.30551,3273.4,3273.2,3.2078]
[1736488011848,3.2078,3273.7,3273.2,3.2078]
[1736488012550,0.3055,3273.5,3273.2,3.2078]
[1736488012841,0.30551,3273.4,3273.2,3.2078]
[1736488013239,0.30549,3273.6,3273.2,3.51332]
[1736488013446,3.2078,3273.7,3273.2,3.51332]
[1736488013647,3.51328,3273.7,3273.3,0.30551]
[1736488014941,3.2078,3273.7,3273.2,3.2078]
[1736488015147,0.30552,3273.3,3273.2,3.2078]
[1736488019953,2.30046245,3273.6,3273.2,3.2078]
[1736488020351,0.30552,3273.3,3273.2,3.2078]
[1736488021246,0.30552,3273.3,3272.4,3.51339]
[1736488021247,0.30557,3272.8,3272.4,3.51339]
[1736488021450,0.30557,3272.8,3272.5,0.30559]
[1736488021652,3.21436245,3273.2,3272.4,3.2078]
[1736488021956,0.30559,3272.5,3272.4,3.2078]
[1736488022656,4.98896245,3273.2,3272.4,3.2078]
[1736488022657,0.30558,3272.7,3272.4,3.2078]
[1736488022850,4.98896245,3273.2,3272.4,3.2078]
[1736488023044,0.30558,3272.6,3272.4,3.2078]
[1736488023250,0.30554,3273.1,3272.7,0.30556]
[1736488023451,2.6885,3273.2,3272.8,3.2078]
[1736488023957,4.98896245,3273.2,3272.8,3.2078]
[1736488024152,0.30555,3272.9,3272.8,3.2078]
[1736488024348,2.2409,3273.2,3272.8,3.2078]
[1736488024551,1.327,3273.2,3273.0,0.30554]
[1736488024942,1.327,3273.2,3272.8,3.2078]
[1736488025357,0.30555,3272.9,3272.8,3.2078]
[1736488025759,3.62746245,3273.2,3272.7,3.2078]
[1736488025960,0.30556,3272.8,3272.7,3.2078]
[1736488026461,3.62746245,3273.2,3272.3,3.2078]
[1736488026648,0.05105922,3273.1,3272.3,3.2078]
[1736488026848,0.3056,3272.4,3272.3,3.2078]
[1736488027053,3.2078,3272.9,3272.3,3.2078]
[1736488027255,0.30559,3272.6,3272.3,3.2078]
[1736488027458,0.30559,3272.5,3272.3,3.2078]
[1736488027658,0.9476,3272.8,3272.3,3.2078]
[1736488027955,0.30559,3272.5,3272.3,3.2078]
[1736488028550,1.895095,3272.6,3272.3,3.2078]
[1736488028750,0.3056,3272.4,3272.3,3.2078]
[1736488028956,0.30559,3272.5,3271.8,3.2078]
[1736488029153,0.30565,3271.9,3271.8,3.2078]
[1736488030254,0.73965,3271.9,3271.8,3.2078]
[1736488030461,1.19605,3271.9,3271.8,3.2078]
[1736488031050,0.4564,3271.9,3271.8,3.2078]
[1736488031249,0.8904,3272.4,3272.1,0.30562]
[1736488031452,0.434,3272.4,3272.2,3.51341]
[1736488031947,0.434,3272.4,3272.2,3.2078]
[1736488032149,2.29664819,3272.3,3271.9,40.8]
[1736488032349,0.434,3272.4,3272.2,0.30561]
[1736488032858,0.73961,3272.4,3272.2,3.2078]
[1736488033255,2.73814819,3272.7,3272.2,3.2078]
[1736488033452,3.2078,3272.9,3272.7,0.30557]
[1736488033655,3.2078,3272.9,3272.3,0.4743]
[1736488034058,3.51336,3272.9,3272.6,0.30557]
[1736488034262,3.51336,3272.9,3272.3,0.4743]
[1736488034263,3.2078,3272.9,3272.3,0.4743]
[1736488034954,0.3056,3272.5,3272.3,0.4743]
[1736488035150,3.2078,3272.9,3272.2,3.51342]
[1736488035151,0.30561,3272.3,3272.2,3.2078]
[1736488035856,0.9112,3272.6,3272.2,3.51342]
[1736488035857,0.30559,3272.5,3272.2,3.51342]
[1736488036056,1.327,3272.7,3272.3,0.30561]
[1736488036355,1.63258,3272.7,3272.4,0.3056]
[1736488036755,0.30558,3272.6,3272.3,0.30561]
[1736488036962,0.30561,3272.4,3272.2,3.2078]
[1736488037158,1.327,3272.7,3272.2,3.2078]
[1736488037357,1.327,3272.7,3272.5,0.30559]
[1736488037760,1.63258,3272.7,3272.3,0.3056]
[1736488038060,1.63258,3272.7,3272.2,3.2078]
[1736488038061,1.327,3272.7,3272.2,3.2078]
[1736488038256,0.4705,3273.2,3272.6,3.2078]
[1736488038467,0.4705,3273.2,3272.9,0.30555]
[1736488038768,0.77278,3273.7,3273.0,3.2078]
[1736488038966,0.4673,3273.7,3273.0,3.2078]
[1736488039162,3.2078,3274.0,3273.7,0.30547]
[1736488039671,3.2078,3274.0,3273.4,3.2078]
[1736488040062,0.3055,3273.5,3273.4,3.2078]
[1736488040762,0.30549,3273.6,3273.4,3.2078]
[1736488041157,0.3055,3273.5,3273.4,3.2078]
[1736488041558,0.30547,3273.8,3273.4,3.2078]
[1736488041764,2.29664819,3273.9,3273.4,3.2078]
[1736488041965,0.30547,3273.8,3273.4,3.5133]
[1736488042162,0.30549,3273.7,3273.4,3.2078]
[1736488042360,0.3055,3273.5,3273.4,3.2078]
[1736488043964,2.29664819,3273.9,3273.4,3.2078]
[1736488044465,0.3055,3273.5,3273.4,3.2078]
[1736488045371,0.3055,3273.5,3273.1,0.30553]
[1736488045573,0.30549,3273.6,3273.2,0.30552]
[1736488046066,0.75688,3273.7,3273.4,3.2078]
[1736488046372,0.4514,3273.7,3273.4,3.2078]
[1736488046568,0.3055,3273.5,3273.4,3.2078]
[1736488048672,2.60214819,3273.5,3273.4,3.2078]
[1736488049076,3.92914819,3273.5,3273.4,3.2078]
[1736488049370,0.30558,3272.6,3272.5,3.2078]
[1736488050376,0.35664634,3272.6,3272.5,3.2078]
[1736488050574,3.25886634,3272.6,3271.6,3.2078]
[1736488050878,0.30566,3271.8,3271.6,3.2078]
[1736488051081,0.30565,3271.9,3271.6,3.2078]
[1736488051375,2.29664819,3272.2,3271.6,3.2078]
[1736488051574,0.30566,3271.8,3271.6,3.2078]
[1736488052578,0.30563,3272.1,3271.6,3.2078]
[1736488052778,2.29664819,3272.2,3271.6,3.2078]
[1736488052973,0.30567,3271.7,3271.6,3.2078]
[1736488053174,2.29664819,3272.2,3271.6,3.2078]
[1736488053378,0.30566,3271.8,3271.6,3.2078]
[1736488053881,2.29664819,3272.2,3271.6,3.2078]
[1736488054074,2.29664819,3272.2,3271.7,0.30566]
[1736488054372,0.4613,3272.5,3272.0,3.2078]
[1736488054577,0.30562,3272.3,3272.0,3.2078]
[1736488054967,0.4613,3272.5,3272.0,3.2078]
[1736488055168,0.4613,3272.5,3271.6,3.2078]
[1736488055169,0.30565,3271.9,3271.6,3.2078]
[1736488055368,0.30565,3271.9,3271.6,3.51347]
[1736488055781,0.30565,3271.9,3271.6,3.2078]
[1736488056380,0.30566,3271.8,3271.6,3.2078]
[1736488056968,0.30565,3271.9,3271.6,3.51347]
[1736488057274,0.4613,3272.5,3272.0,0.30563]
[1736488057275,0.30562,3272.3,3272.0,0.30563]
[1736488057470,0.30561,3272.3,3272.0,3.51343]
[1736488057674,0.30563,3272.1,3272.0,3.2078]
[1736488059182,0.4613,3272.5,3271.6,3.2078]
[1736488059375,0.30566,3271.8,3271.6,3.2078]
[1736488060180,0.30563,3272.1,3271.6,3.51347]
[1736488060381,0.4613,3272.5,3271.6,3.2078]
[1736488060583,0.30562,3272.2,3272.0,3.2078]
[1736488060974,0.4613,3272.5,3272.0,3.2078]
[1736488061181,0.3056,3272.5,3272.2,0.30562]
[1736488061377,0.3056,3272.4,3272.1,0.30562]
[1736488061578,3.61964819,3273.0,3272.0,3.2078]
[1736488061879,3.61964819,3273.0,3272.5,0.30559]
[1736488062284,0.30558,3272.7,3272.4,3.5134]
[1736488062674,3.61964819,3273.0,3272.4,3.2078]
[1736488062884,3.61964819,3273.0,3272.1,1.18303]
[1736488063080,0.3056,3272.4,3272.1,1.18303]
[1736488063476,0.30562,3272.2,3272.0,3.2078]
[1736488063688,0.30563,3272.1,3272.0,3.2078]
[1736488064084,0.30562,3272.2,3272.0,3.2078]
[1736488064276,0.9366,3272.5,3272.0,3.2078]
[1736488064485,0.30563,3272.1,3272.0,3.2078]
[1736488065385,2.29664819,3272.2,3271.5,3.2078]
[1736488065588,2.29664819,3272.2,3271.5,3.51348]
[1736488065589,0.30566,3271.8,3271.5,3.51348]
[1736488065791,2.29664819,3272.2,3271.6,0.30568]
[1736488066083,2.29664819,3272.2,3271.5,3.2078]
[1736488066389,3.2078,3272.4,3271.5,3.2078]
[1736488066689,0.9366,3272.5,3271.9,3.51344]
[1736488066690,0.30562,3272.2,3271.9,3.51344]
[1736488067585,0.9366,3272.5,3271.9,3.2078]
[1736488067790,0.30564,3272.0,3271.9,3.2078]
[1736488068489,0.9366,3272.5,3271.9,3.2078]
[1736488069091,0.30563,3272.1,3271.9,3.51345]
[1736488069291,0.3056,3272.4,3271.9,3.2078]
[1736488069591,0.9366,3272.5,3271.9,3.2078]
[1736488070193,0.30562,3272.2,3271.9,3.51344]
[1736488071097,0.9366,3272.5,3271.9,3.2078]
[1736488071291,1.89564549,3272.4,3271.9,3.2078]
[1736488071598,0.30563,3272.1,3271.9,3.2078]
[1736488072095,0.30563,3272.1,3272.0,3.2078]
[1736488072292,0.30561,3272.3,3272.0,3.2078]
[1736488072599,0.30562,3272.2,3272.0,3.2078]
[1736488073195,1.89564549,3272.4,3272.0,3.2078]
[1736488073395,0.30562,3272.3,3272.0,3.2078]
[1736488073600,0.30562,3272.2,3272.0,3.2078]
[1736488075105,0.4659,3272.5,3272.0,3.2078]
[1736488075306,2.20122549,3272.7,3272.4,0.3056]
[1736488076002,0.30558,3272.6,3272.3,0.3056]
[1736488076400,2.64119549,3273.0,3272.6,0.30558]
[1736488076599,2.64119549,3273.0,3272.7,0.30557]
[1736488077104,2.64119549,3273.0,3272.4,3.2078]
[1736488077105,1.89564549,3273.0,3272.4,44.0078]
[1736488077312,0.30554,3273.1,3272.8,0.30556]
[1736488077496,0.30554,3273.1,3272.4,44.0078]
[1736488077697,0.30554,3273.1,3272.7,0.30557]
[1736488078206,1.89564549,3273.0,3272.4,3.2078]
[1736488078805,0.30559,3272.5,3272.4,3.2078]
[1736488079201,0.4639,3272.9,3272.4,3.2078]
[1736488079400,0.30558,3272.7,3272.4,3.5134]
[1736488080107,0.30553,3273.2,3272.5,0.30559]
[1736488080310,2.20116549,3273.3,3273.0,0.30554]
[1736488080615,0.30554,3273.1,3272.8,3.2078]
[1736488080907,1.89564549,3273.3,3272.8,3.2078]
[1736488081207,1.89564549,3273.3,3273.1,0.30553]
[1736488081507,2.20116549,3273.3,3273.1,0.30553]
[1736488081907,2.20116549,3273.3,3273.0,0.30554]
[1736488082502,2.20116549,3273.3,3272.9,0.8766]
[1736488082503,1.89564549,3273.3,3272.9,0.8766]
[1736488082807,0.30553,3273.1,3272.8,3.51336]
[1736488083605,0.30553,3273.1,3272.8,3.2078]
[1736488083813,0.30553,3273.2,3272.9,0.30555]
[1736488084000,0.30553,3273.2,3272.8,3.2078]
[1736488084001,0.30554,3273.1,3272.8,3.51336]
[1736488084206,1.89564549,3273.3,3272.8,3.2078]
[1736488084402,0.30553,3273.2,3272.9,0.30555]
[1736488084809,1.89564549,3273.3,3272.8,3.2078]
[1736488085101,0.30552,3273.3,3273.0,0.30554]
[1736488085506,1.3711,3273.5,3272.9,0.30555]
[1736488085507,0.30553,3273.2,3272.9,0.30555]
[1736488086005,0.30551,3273.4,3272.8,3.2078]
[1736488086205,1.89564549,3273.6,3272.8,3.2078]
[1736488086606,0.30551,3273.5,3273.2,0.30552]
[1736488087207,0.30551,3273.5,3273.0,0.30554]
[1736488087406,1.89564549,3273.6,3273.2,3.2078]
[1736488087712,0.30551,3273.4,3273.2,3.2078]
[1736488088112,1.89564549,3273.3,3272.8,3.2078]
[1736488088313,0.30555,3273.0,3272.8,3.2078]
[1736488088713,3.2078,3274.5,3272.8,5.10344549]
[1736488088908,0.30544,3274.2,3273.8,0.30546]
[1736488089108,2.85858741,3274.4,3273.5,3.2078]
[1736488089109,2.80754549,3274.4,3273.5,3.2078]
[1736488089408,0.30542,3274.3,3274.0,0.30544]
[1736488089714,0.30543,3274.2,3273.9,3.51325]
[1736488089917,0.30543,3274.2,3273.9,3.2078]
[1736488090414,0.30543,3274.2,3273.9,3.51326]
[1736488090614,0.30545,3274.0,3273.9,3.2078]
[1736488091112,0.30544,3274.2,3273.9,3.2078]
[1736488091310,0.30544,3274.1,3273.9,3.2078]
[1736488092522,0.30545,3274.0,3273.9,3.2078]
[1736488093917,2.80754549,3274.4,3273.9,3.2078]
[1736488094219,0.30544,3274.1,3273.9,3.2078]
[1736488094720,0.30545,3274.0,3273.9,3.2078]
[1736488096017,0.30544,3274.1,3273.9,3.2078]
[1736488096215,1.21732,3274.4,3274.0,0.30544]
[1736488097109,0.9119,3274.4,3273.9,3.2078]
[1736488097717,1.21732,3274.4,3274.0,0.30545]
[1736488097916,0.9119,3274.4,3273.9,3.2078]
[1736488098114,0.30544,3274.2,3273.9,3.2078]
[1736488098518,0.30542,3274.3,3274.0,0.30545]
[1736488099020,0.30544,3274.1,3273.9,3.2078]
[1736488099329,0.30543,3274.2,3273.9,3.51326]
[1736488100222,0.30544,3274.1,3273.9,3.2078]
[1736488100416,0.30543,3274.3,3274.0,0.30545]
[1736488101020,1.21731,3274.4,3274.1,0.30543]
[1736488101421,1.21732,3274.4,3274.1,0.30543]
[1736488101622,0.9119,3274.4,3274.1,0.30543]
[1736488102016,3.2078,3274.9,3273.9,3.2078]
[1736488102219,3.2078,3274.9,3273.4,0.76376]
[1736488102220,0.4686,3274.8,3274.3,3.2078]
[1736488102518,0.4686,3274.8,3274.7,3.2078]
[1736488102717,0.77397,3274.8,3274.7,3.2078]
[1736488102916,0.30536,3275.0,3274.7,3.51318]
[1736488103218,3.2078,3275.3,3274.7,3.2078]
[1736488103219,0.30537,3274.9,3274.7,3.2078]
[1736488103422,4.1276,3275.3,3275.0,0.30535]
[1736488103826,4.1276,3275.3,3274.8,0.459]
[1736488104120,4.1276,3275.3,3275.1,0.30534]
[1736488104328,0.30534,3275.2,3274.9,0.30537]
[1736488104521,4.1276,3275.3,3274.6,3.2078]
[1736488104522,6.02324549,3275.3,3274.6,3.2078]
[1736488104826,6.02324549,3275.3,3274.0,1.89564549]
[1736488104827,0.3054,3274.6,3274.2,3.2078]
[1736488105125,1.89564549,3275.0,3274.2,3.2078]
[1736488105419,0.30542,3274.3,3274.2,3.2078]
[1736488106011,0.30541,3274.5,3274.2,3.51323]
[1736488106217,0.30542,3274.4,3274.2,3.2078]
[1736488106421,0.30542,3274.3,3274.2,3.2078]
[1736488106622,0.4775,3274.4,3274.2,3.2078]
[1736488106822,0.78291,3274.4,3274.2,3.51323]
[1736488107023,0.78291,3274.4,3274.2,3.2078]
[1736488107825,0.30542,3274.3,3274.2,3.2078]
[1736488108922,0.74282,3274.3,3274.2,3.2078]
[1736488110630,0.74282,3274.3,3273.5,3.2078]
[1736488110631,4.9382,3274.3,3273.5,3.2078]
[1736488110832,0.30548,3273.7,3273.5,3.2078]
[1736488111126,0.4477,3273.6,3273.1,3.2078]
[1736488111323,0.8787,3273.5,3273.1,3.2078]
[1736488111626,0.30552,3273.2,3273.1,3.2078]
[1736488112427,0.30556,3272.8,3272.7,3.2078]
[1736488113030,0.30556,3272.9,3272.7,3.2078]
[1736488114328,0.30556,3272.8,3272.7,3.2078]
[1736488114530,0.30557,3272.7,3272.3,3.2078]
[1736488114835,0.30557,3272.7,3272.4,0.3056]
[1736488115033,0.4502,3272.8,3272.3,3.2078]
[1736488115237,0.30558,3272.6,3272.3,3.2078]
[1736488115538,0.3056,3272.4,3272.3,3.2078]
[1736488121843,0.30563,3272.1,3271.7,0.30566]
[1736488122245,0.30562,3272.2,3272.0,3.2078]
[1736488123143,0.30563,3272.1,3272.0,3.2078]
[1736488125638,0.74873,3272.1,3272.0,3.2078]
[1736488126245,1.22033,3272.1,3272.0,3.2078]
[1736488127139,1.22033,3272.1,3271.5,41.256]
[1736488127140,0.30567,3271.6,3271.5,3.2078]
[1736488127345,1.89564549,3272.0,3271.5,3.2078]
[1736488127646,0.30567,3271.6,3271.5,3.2078]
[1736488128043,0.30567,3271.7,3271.5,3.2078]
[1736488128346,0.30567,3271.6,3271.5,3.2078]
[1736488131849,0.30569,3271.4,3271.3,0.77817074]
[1736488132249,0.30571,3271.3,3271.1,44.4479]
[1736488132444,0.4766,3271.6,3271.1,44.4479]
[1736488132648,0.3057,3271.4,3271.1,44.4479]
[1736488133348,0.3057,3271.4,3271.1,3.6479]
[1736488133746,0.30571,3271.3,3271.1,44.4479]
[1736488133945,0.30571,3271.3,3271.1,44.0078]
[1736488134146,0.30571,3271.3,3271.1,3.2078]
[1736488134652,0.30571,3271.2,3271.1,3.2078]
[1736488138147,0.4766,3271.6,3271.1,3.2078]
[1736488138346,0.30574,3271.2,3271.1,3.2078]
[1736488140452,3.2078,3271.3,3270.7,3.2078]
[1736488140647,0.30578,3270.8,3270.7,3.2078]
[1736488141055,3.2078,3270.9,3270.4,0.4492]
[1736488141357,0.3058,3270.5,3270.4,0.4492]
[1736488141565,2.20144549,3270.6,3270.2,3.2078]
[1736488141753,0.30581,3270.5,3270.2,3.51363]
[1736488142253,0.30582,3270.3,3270.2,3.2078]
[1736488142559,1.89564549,3270.6,3270.2,3.2078]
[1736488142756,2.20146549,3270.3,3270.2,3.2078]
[1736488143762,0.30586,3269.9,3269.8,3.2078]
[1736488143957,1.89564549,3269.9,3269.7,0.30588]
[1736488144153,1.89564549,3269.9,3269.6,41.10588]
[1736488144359,2.20150549,3269.9,3269.6,0.30588]
[1736488144560,0.3059,3269.5,3269.4,3.2078]
[1736488144762,1.89564549,3269.5,3269.4,3.2078]
[1736488145062,2.20154549,3269.5,3269.4,3.2078]
[1736488145365,1.89564549,3269.5,3269.0,3.51374]
[1736488145560,1.89564549,3269.5,3269.0,3.2078]
[1736488145864,1.89564549,3269.1,3269.0,3.2078]
[1736488147766,1.89564549,3269.1,3269.0,3.51374]
[1736488147965,3.2078,3269.7,3269.0,3.2078]
[1736488148161,1.89564549,3269.6,3269.4,0.3059]
[1736488148356,1.89564549,3269.6,3269.1,0.4507]
[1736488148660,1.89564549,3269.3,3269.0,3.2078]
[1736488148965,0.30593,3269.2,3269.0,3.2078]
[1736488149157,0.4663,3269.1,3269.0,3.2078]
[1736488149358,0.77224,3269.1,3268.8,40.8]
[1736488149559,1.89564549,3268.9,3268.8,40.8]
[1736488150059,1.89564549,3268.9,3268.7,0.30597]
[1736488150361,1.89564549,3268.9,3268.7,40.8]
[1736488150562,1.89564549,3268.9,3268.7,41.10597]
[1736488150760,1.89564549,3268.9,3268.7,40.8]
[1736488150954,1.89564549,3268.9,3268.7,41.10597]
[1736488151463,1.89564549,3268.9,3268.7,40.8]
[1736488151657,0.30596,3268.8,3268.7,40.8]
[1736488151955,0.30596,3268.8,3268.5,3.2078]
[1736488152158,1.89564549,3268.9,3268.5,3.2078]
[1736488152958,1.89564549,3268.9,3268.6,0.30598]
[1736488153158,1.89564549,3268.9,3268.5,3.2078]
[1736488153559,1.89564549,3268.9,3268.6,0.30597]
[1736488153959,1.89564549,3268.9,3268.5,3.2078]
[1736488154466,1.89564549,3268.9,3268.6,0.30598]
[1736488155362,2.20160549,3268.9,3268.6,0.30598]
[1736488155862,2.20160549,3268.9,3268.5,3.2078]
[1736488156063,1.89564549,3268.9,3268.5,3.2078]
[1736488156263,1.89564549,3268.9,3268.7,0.30597]
[1736488156664,1.89564549,3268.9,3268.5,3.2078]
[1736488156665,2.20159549,3268.9,3268.6,0.30598]
[1736488156868,1.89564549,3268.9,3268.7,0.30597]
[1736488157367,0.4663,3269.1,3268.5,3.2078]
[1736488157566,1.89564549,3269.2,3269.1,0.30594]
[1736488157970,3.2078,3269.3,3269.2,0.30593]
[1736488158374,3.2078,3269.3,3269.1,0.30593]
[1736488158563,3.2078,3269.3,3268.6,0.9284]
[1736488158564,3.2078,3269.3,3269.2,0.30593]
[1736488158869,1.89564549,3269.5,3269.4,0.30591]
[1736488159372,1.89564549,3269.8,3269.7,0.30588]